Workbook

Sheet Export Summary
B3: This document was exported from Numbers. Each table was converted to an Excel worksheet. All other objects on each Numbers sheet were placed on separate worksheets. Please be aware that formula calculations may differ in Excel.
B7: Numbers Sheet Name | C7: Numbers Table Name | D7: Excel Worksheet Name
B9: Natural Yeast
C10: Pizza | D10: Natural Yeast - Pizza
C11: Bread | D11: Natural Yeast - Bread
C12: “All Drawings from the Sheet” | D12: Natural Yeast - Drawings
B13: Dry Yeast
C14: Pizza | D14: Dry Yeast - Pizza
C15: Bread | D15: Dry Yeast - Bread
C16: “All Drawings from the Sheet” | D16: Dry Yeast - Drawings

Sheet Natural Yeast - Pizza
A1: Pizza
B2: F | C2: W | D2: S | E2: Y.1H | F2: Y.2H | G2: Y.3H | H2: Y.4H | I2: Y.5H | J2: Y.6H | K2: Y.7H | L2: Y.8H
B3: 1 | C3: 0.7 | D3: 0.02 | E3: 0.036 | F3: 0.018 | G3: 0.012 | H3: 0.009 | I3: 0.0072 | J3: 0.006 | K3: 0.0051 | L3: 0.0045
B4: 120 | C4: =$B4*C$3 -> 84 | D4: =$B4*D$3 -> 2.4 | E4: =$B4*E$3 -> 4.32 | F4: =$B4*F$3 -> 2.16 | G4: =$B4*G$3 -> 1.44 | H4: =$B4*H$3 -> 1.08 | I4: =$B4*I$3 -> 0.864 | J4: =$B4*J$3 -> 0.72 | K4: =$B4*K$3 -> 0.612 | L4: =$B4*L$3 -> 0.54
B5: 130 | C5: =$B5*C$3 -> 91 | D5: =$B5*D$3 -> 2.6 | E5: =$B5*E$3 -> 4.68 | F5: =$B5*F$3 -> 2.34 | G5: =$B5*G$3 -> 1.56 | H5: =$B5*H$3 -> 1.17 | I5: =$B5*I$3 -> 0.936 | J5: =$B5*J$3 -> 0.78 | K5: =$B5*K$3 -> 0.663 | L5: =$B5*L$3 -> 0.585
B6: 140 | C6: =$B6*C$3 -> 98 | D6: =$B6*D$3 -> 2.8 | E6: =$B6*E$3 -> 5.04 | F6: =$B6*F$3 -> 2.52 | G6: =$B6*G$3 -> 1.68 | H6: =$B6*H$3 -> 1.26 | I6: =$B6*I$3 -> 1.008 | J6: =$B6*J$3 -> 0.84 | K6: =$B6*K$3 -> 0.714 | L6: =$B6*L$3 -> 0.63
B7: 150 | C7: =$B7*C$3 -> 105 | D7: =$B7*D$3 -> 3 | E7: =$B7*E$3 -> 5.4 | F7: =$B7*F$3 -> 2.7 | G7: =$B7*G$3 -> 1.8 | H7: =$B7*H$3 -> 1.35 | I7: =$B7*I$3 -> 1.08 | J7: =$B7*J$3 -> 0.9 | K7: =$B7*K$3 -> 0.765 | L7: =$B7*L$3 -> 0.675
B8: 160 | C8: =$B8*C$3 -> 112 | D8: =$B8*D$3 -> 3.2 | E8: =$B8*E$3 -> 5.76 | F8: =$B8*F$3 -> 2.88 | G8: =$B8*G$3 -> 1.92 | H8: =$B8*H$3 -> 1.44 | I8: =$B8*I$3 -> 1.152 | J8: =$B8*J$3 -> 0.96 | K8: =$B8*K$3 -> 0.816 | L8: =$B8*L$3 -> 0.72
B9: 170 | C9: =$B9*C$3 -> 119 | D9: =$B9*D$3 -> 3.4 | E9: =$B9*E$3 -> 6.12 | F9: =$B9*F$3 -> 3.06 | G9: =$B9*G$3 -> 2.04 | H9: =$B9*H$3 -> 1.53 | I9: =$B9*I$3 -> 1.224 | J9: =$B9*J$3 -> 1.02 | K9: =$B9*K$3 -> 0.867 | L9: =$B9*L$3 -> 0.765
B10: 180 | C10: =$B10*C$3 -> 126 | D10: =$B10*D$3 -> 3.6 | E10: =$B10*E$3 -> 6.48 | F10: =$B10*F$3 -> 3.24 | G10: =$B10*G$3 -> 2.16 | H10: =$B10*H$3 -> 1.62 | I10: =$B10*I$3 -> 1.296 | J10: =$B10*J$3 -> 1.08 | K10: =$B10*K$3 -> 0.918 | L10: =$B10*L$3 -> 0.81
B11: =B4*2 -> 240 | C11: =$B11*C$3 -> 168 | D11: =$B11*D$3 -> 4.8 | E11: =$B11*E$3 -> 8.64 | F11: =$B11*F$3 -> 4.32 | G11: =$B11*G$3 -> 2.88 | H11: =$B11*H$3 -> 2.16 | I11: =$B11*I$3 -> 1.728 | J11: =$B11*J$3 -> 1.44 | K11: =$B11*K$3 -> 1.224 | L11: =$B11*L$3 -> 1.08
B12: =B5*2 -> 260 | C12: =$B12*C$3 -> 182 | D12: =$B12*D$3 -> 5.2 | E12: =$B12*E$3 -> 9.36 | F12: =$B12*F$3 -> 4.68 | G12: =$B12*G$3 -> 3.12 | H12: =$B12*H$3 -> 2.34 | I12: =$B12*I$3 -> 1.872 | J12: =$B12*J$3 -> 1.56 | K12: =$B12*K$3 -> 1.326 | L12: =$B12*L$3 -> 1.17
B13: =B6*2 -> 280 | C13: =$B13*C$3 -> 196 | D13: =$B13*D$3 -> 5.6 | E13: =$B13*E$3 -> 10.08 | F13: =$B13*F$3 -> 5.04 | G13: =$B13*G$3 -> 3.36 | H13: =$B13*H$3 -> 2.52 | I13: =$B13*I$3 -> 2.016 | J13: =$B13*J$3 -> 1.68 | K13: =$B13*K$3 -> 1.428 | L13: =$B13*L$3 -> 1.26
B14: =B7*2 -> 300 | C14: =$B14*C$3 -> 210 | D14: =$B14*D$3 -> 6 | E14: =$B14*E$3 -> 10.8 | F14: =$B14*F$3 -> 5.4 | G14: =$B14*G$3 -> 3.6 | H14: =$B14*H$3 -> 2.7 | I14: =$B14*I$3 -> 2.16 | J14: =$B14*J$3 -> 1.8 | K14: =$B14*K$3 -> 1.53 | L14: =$B14*L$3 -> 1.35
B15: =B8*2 -> 320 | C15: =$B15*C$3 -> 224 | D15: =$B15*D$3 -> 6.4 | E15: =$B15*E$3 -> 11.52 | F15: =$B15*F$3 -> 5.76 | G15: =$B15*G$3 -> 3.84 | H15: =$B15*H$3 -> 2.88 | I15: =$B15*I$3 -> 2.304 | J15: =$B15*J$3 -> 1.92 | K15: =$B15*K$3 -> 1.632 | L15: =$B15*L$3 -> 1.44
B16: =B9*2 -> 340 | C16: =$B16*C$3 -> 238 | D16: =$B16*D$3 -> 6.8 | E16: =$B16*E$3 -> 12.24 | F16: =$B16*F$3 -> 6.12 | G16: =$B16*G$3 -> 4.08 | H16: =$B16*H$3 -> 3.06 | I16: =$B16*I$3 -> 2.448 | J16: =$B16*J$3 -> 2.04 | K16: =$B16*K$3 -> 1.734 | L16: =$B16*L$3 -> 1.53
B17: =B10*2 -> 360 | C17: =$B17*C$3 -> 252 | D17: =$B17*D$3 -> 7.2 | E17: =$B17*E$3 -> 12.96 | F17: =$B17*F$3 -> 6.48 | G17: =$B17*G$3 -> 4.32 | H17: =$B17*H$3 -> 3.24 | I17: =$B17*I$3 -> 2.592 | J17: =$B17*J$3 -> 2.16 | K17: =$B17*K$3 -> 1.836 | L17: =$B17*L$3 -> 1.62
B18: =B5*3 -> 390 | C18: =$B18*C$3 -> 273 | D18: =$B18*D$3 -> 7.8 | E18: =$B18*E$3 -> 14.04 | F18: =$B18*F$3 -> 7.02 | G18: =$B18*G$3 -> 4.68 | H18: =$B18*H$3 -> 3.51 | I18: =$B18*I$3 -> 2.808 | J18: =$B18*J$3 -> 2.34 | K18: =$B18*K$3 -> 1.989 | L18: =$B18*L$3 -> 1.755
B19: =B6*3 -> 420 | C19: =$B19*C$3 -> 294 | D19: =$B19*D$3 -> 8.4 | E19: =$B19*E$3 -> 15.12 | F19: =$B19*F$3 -> 7.56 | G19: =$B19*G$3 -> 5.04 | H19: =$B19*H$3 -> 3.78 | I19: =$B19*I$3 -> 3.024 | J19: =$B19*J$3 -> 2.52 | K19: =$B19*K$3 -> 2.142 | L19: =$B19*L$3 -> 1.89
B20: =B7*3 -> 450 | C20: =$B20*C$3 -> 315 | D20: =$B20*D$3 -> 9 | E20: =$B20*E$3 -> 16.2 | F20: =$B20*F$3 -> 8.1 | G20: =$B20*G$3 -> 5.4 | H20: =$B20*H$3 -> 4.05 | I20: =$B20*I$3 -> 3.24 | J20: =$B20*J$3 -> 2.7 | K20: =$B20*K$3 -> 2.295 | L20: =$B20*L$3 -> 2.025
B21: =B8*3 -> 480 | C21: =$B21*C$3 -> 336 | D21: =$B21*D$3 -> 9.6 | E21: =$B21*E$3 -> 17.28 | F21: =$B21*F$3 -> 8.64 | G21: =$B21*G$3 -> 5.76 | H21: =$B21*H$3 -> 4.32 | I21: =$B21*I$3 -> 3.456 | J21: =$B21*J$3 -> 2.88 | K21: =$B21*K$3 -> 2.448 | L21: =$B21*L$3 -> 2.16
B22: =B9*3 -> 510 | C22: =$B22*C$3 -> 357 | D22: =$B22*D$3 -> 10.2 | E22: =$B22*E$3 -> 18.36 | F22: =$B22*F$3 -> 9.18 | G22: =$B22*G$3 -> 6.12 | H22: =$B22*H$3 -> 4.59 | I22: =$B22*I$3 -> 3.672 | J22: =$B22*J$3 -> 3.06 | K22: =$B22*K$3 -> 2.601 | L22: =$B22*L$3 -> 2.295
B23: =B10*3 -> 540 | C23: =$B23*C$3 -> 378 | D23: =$B23*D$3 -> 10.8 | E23: =$B23*E$3 -> 19.44 | F23: =$B23*F$3 -> 9.72 | G23: =$B23*G$3 -> 6.48 | H23: =$B23*H$3 -> 4.86 | I23: =$B23*I$3 -> 3.888 | J23: =$B23*J$3 -> 3.24 | K23: =$B23*K$3 -> 2.754 | L23: =$B23*L$3 -> 2.43
B24: =B4*4 -> 480 | C24: =$B24*C$3 -> 336 | D24: =$B24*D$3 -> 9.6 | E24: =$B24*E$3 -> 17.28 | F24: =$B24*F$3 -> 8.64 | G24: =$B24*G$3 -> 5.76 | H24: =$B24*H$3 -> 4.32 | I24: =$B24*I$3 -> 3.456 | J24: =$B24*J$3 -> 2.88 | K24: =$B24*K$3 -> 2.448 | L24: =$B24*L$3 -> 2.16
B25: =B5*4 -> 520 | C25: =$B25*C$3 -> 364 | D25: =$B25*D$3 -> 10.4 | E25: =$B25*E$3 -> 18.72 | F25: =$B25*F$3 -> 9.36 | G25: =$B25*G$3 -> 6.24 | H25: =$B25*H$3 -> 4.68 | I25: =$B25*I$3 -> 3.744 | J25: =$B25*J$3 -> 3.12 | K25: =$B25*K$3 -> 2.652 | L25: =$B25*L$3 -> 2.34
B26: =B6*4 -> 560 | C26: =$B26*C$3 -> 392 | D26: =$B26*D$3 -> 11.2 | E26: =$B26*E$3 -> 20.16 | F26: =$B26*F$3 -> 10.08 | G26: =$B26*G$3 -> 6.72 | H26: =$B26*H$3 -> 5.04 | I26: =$B26*I$3 -> 4.032 | J26: =$B26*J$3 -> 3.36 | K26: =$B26*K$3 -> 2.856 | L26: =$B26*L$3 -> 2.52
B27: =B7*4 -> 600 | C27: =$B27*C$3 -> 420 | D27: =$B27*D$3 -> 12 | E27: =$B27*E$3 -> 21.6 | F27: =$B27*F$3 -> 10.8 | G27: =$B27*G$3 -> 7.2 | H27: =$B27*H$3 -> 5.4 | I27: =$B27*I$3 -> 4.32 | J27: =$B27*J$3 -> 3.6 | K27: =$B27*K$3 -> 3.06 | L27: =$B27*L$3 -> 2.7
B28: =B8*4 -> 640 | C28: =$B28*C$3 -> 448 | D28: =$B28*D$3 -> 12.8 | E28: =$B28*E$3 -> 23.04 | F28: =$B28*F$3 -> 11.52 | G28: =$B28*G$3 -> 7.68 | H28: =$B28*H$3 -> 5.76 | I28: =$B28*I$3 -> 4.608 | J28: =$B28*J$3 -> 3.84 | K28: =$B28*K$3 -> 3.264 | L28: =$B28*L$3 -> 2.88
B29: =B9*4 -> 680 | C29: =$B29*C$3 -> 476 | D29: =$B29*D$3 -> 13.6 | E29: =$B29*E$3 -> 24.48 | F29: =$B29*F$3 -> 12.24 | G29: =$B29*G$3 -> 8.16 | H29: =$B29*H$3 -> 6.12 | I29: =$B29*I$3 -> 4.896 | J29: =$B29*J$3 -> 4.08 | K29: =$B29*K$3 -> 3.468 | L29: =$B29*L$3 -> 3.06
B30: =B10*4 -> 720 | C30: =$B30*C$3 -> 504 | D30: =$B30*D$3 -> 14.4 | E30: =$B30*E$3 -> 25.92 | F30: =$B30*F$3 -> 12.96 | G30: =$B30*G$3 -> 8.64 | H30: =$B30*H$3 -> 6.48 | I30: =$B30*I$3 -> 5.184 | J30: =$B30*J$3 -> 4.32 | K30: =$B30*K$3 -> 3.672 | L30: =$B30*L$3 -> 3.24

Sheet Natural Yeast - Bread
A1: Bread
A2: F | B2: W | C2: S | D2: Y.1H | E2: Y.2H | F2: Y.3H | G2: Y.4H | H2: Y.5H | I2: Y.6H | J2: Y.7H | K2: Y.8H
A3: 1 | B3: 0.72 | C3: 0.02 | D3: 0.072 | E3: 0.036 | F3: 0.018 | G3: 0.012 | H3: 0.009 | I3: 0.0072 | J3: 0.006 | K3: 0.0051
A4: 100 | B4: =$A4*B$3 -> 72 | C4: =$A4*C$3 -> 2 | D4: =$A4*D$3 -> 7.2 | E4: =$A4*E$3 -> 3.6 | F4: =$A4*F$3 -> 1.8 | G4: =$A4*G$3 -> 1.2 | H4: =$A4*H$3 -> 0.9 | I4: =$A4*I$3 -> 0.72 | J4: =$A4*J$3 -> 0.6 | K4: =$A4*K$3 -> 0.51
A5: 150 | B5: =$A5*B$3 -> 108 | C5: =$A5*C$3 -> 3 | D5: =$A5*D$3 -> 10.8 | E5: =$A5*E$3 -> 5.4 | F5: =$A5*F$3 -> 2.7 | G5: =$A5*G$3 -> 1.8 | H5: =$A5*H$3 -> 1.35 | I5: =$A5*I$3 -> 1.08 | J5: =$A5*J$3 -> 0.9 | K5: =$A5*K$3 -> 0.765
A6: 200 | B6: =$A6*B$3 -> 144 | C6: =$A6*C$3 -> 4 | D6: =$A6*D$3 -> 14.4 | E6: =$A6*E$3 -> 7.2 | F6: =$A6*F$3 -> 3.6 | G6: =$A6*G$3 -> 2.4 | H6: =$A6*H$3 -> 1.8 | I6: =$A6*I$3 -> 1.44 | J6: =$A6*J$3 -> 1.2 | K6: =$A6*K$3 -> 1.02
A7: 250 | B7: =$A7*B$3 -> 180 | C7: =$A7*C$3 -> 5 | D7: =$A7*D$3 -> 18 | E7: =$A7*E$3 -> 9 | F7: =$A7*F$3 -> 4.5 | G7: =$A7*G$3 -> 3 | H7: =$A7*H$3 -> 2.25 | I7: =$A7*I$3 -> 1.8 | J7: =$A7*J$3 -> 1.5 | K7: =$A7*K$3 -> 1.275
A8: 300 | B8: =$A8*B$3 -> 216 | C8: =$A8*C$3 -> 6 | D8: =$A8*D$3 -> 21.6 | E8: =$A8*E$3 -> 10.8 | F8: =$A8*F$3 -> 5.4 | G8: =$A8*G$3 -> 3.6 | H8: =$A8*H$3 -> 2.7 | I8: =$A8*I$3 -> 2.16 | J8: =$A8*J$3 -> 1.8 | K8: =$A8*K$3 -> 1.53
A9: 350 | B9: =$A9*B$3 -> 252 | C9: =$A9*C$3 -> 7 | D9: =$A9*D$3 -> 25.2 | E9: =$A9*E$3 -> 12.6 | F9: =$A9*F$3 -> 6.3 | G9: =$A9*G$3 -> 4.2 | H9: =$A9*H$3 -> 3.15 | I9: =$A9*I$3 -> 2.52 | J9: =$A9*J$3 -> 2.1 | K9: =$A9*K$3 -> 1.785
A10: 400 | B10: =$A10*B$3 -> 288 | C10: =$A10*C$3 -> 8 | D10: =$A10*D$3 -> 28.8 | E10: =$A10*E$3 -> 14.4 | F10: =$A10*F$3 -> 7.2 | G10: =$A10*G$3 -> 4.8 | H10: =$A10*H$3 -> 3.6 | I10: =$A10*I$3 -> 2.88 | J10: =$A10*J$3 -> 2.4 | K10: =$A10*K$3 -> 2.04
A11: 450 | B11: =$A11*B$3 -> 324 | C11: =$A11*C$3 -> 9 | D11: =$A11*D$3 -> 32.4 | E11: =$A11*E$3 -> 16.2 | F11: =$A11*F$3 -> 8.1 | G11: =$A11*G$3 -> 5.4 | H11: =$A11*H$3 -> 4.05 | I11: =$A11*I$3 -> 3.24 | J11: =$A11*J$3 -> 2.7 | K11: =$A11*K$3 -> 2.295
A12: 500 | B12: =$A12*B$3 -> 360 | C12: =$A12*C$3 -> 10 | D12: =$A12*D$3 -> 36 | E12: =$A12*E$3 -> 18 | F12: =$A12*F$3 -> 9 | G12: =$A12*G$3 -> 6 | H12: =$A12*H$3 -> 4.5 | I12: =$A12*I$3 -> 3.6 | J12: =$A12*J$3 -> 3 | K12: =$A12*K$3 -> 2.55
A13: 550 | B13: =$A13*B$3 -> 396 | C13: =$A13*C$3 -> 11 | D13: =$A13*D$3 -> 39.6 | E13: =$A13*E$3 -> 19.8 | F13: =$A13*F$3 -> 9.9 | G13: =$A13*G$3 -> 6.6 | H13: =$A13*H$3 -> 4.95 | I13: =$A13*I$3 -> 3.96 | J13: =$A13*J$3 -> 3.3 | K13: =$A13*K$3 -> 2.805
A14: 600 | B14: =$A14*B$3 -> 432 | C14: =$A14*C$3 -> 12 | D14: =$A14*D$3 -> 43.2 | E14: =$A14*E$3 -> 21.6 | F14: =$A14*F$3 -> 10.8 | G14: =$A14*G$3 -> 7.2 | H14: =$A14*H$3 -> 5.4 | I14: =$A14*I$3 -> 4.32 | J14: =$A14*J$3 -> 3.6 | K14: =$A14*K$3 -> 3.06
A15: 650 | B15: =$A15*B$3 -> 468 | C15: =$A15*C$3 -> 13 | D15: =$A15*D$3 -> 46.8 | E15: =$A15*E$3 -> 23.4 | F15: =$A15*F$3 -> 11.7 | G15: =$A15*G$3 -> 7.8 | H15: =$A15*H$3 -> 5.85 | I15: =$A15*I$3 -> 4.68 | J15: =$A15*J$3 -> 3.9 | K15: =$A15*K$3 -> 3.315
A16: 700 | B16: =$A16*B$3 -> 504 | C16: =$A16*C$3 -> 14 | D16: =$A16*D$3 -> 50.4 | E16: =$A16*E$3 -> 25.2 | F16: =$A16*F$3 -> 12.6 | G16: =$A16*G$3 -> 8.4 | H16: =$A16*H$3 -> 6.3 | I16: =$A16*I$3 -> 5.04 | J16: =$A16*J$3 -> 4.2 | K16: =$A16*K$3 -> 3.57
A17: 750 | B17: =$A17*B$3 -> 540 | C17: =$A17*C$3 -> 15 | D17: =$A17*D$3 -> 54 | E17: =$A17*E$3 -> 27 | F17: =$A17*F$3 -> 13.5 | G17: =$A17*G$3 -> 9 | H17: =$A17*H$3 -> 6.75 | I17: =$A17*I$3 -> 5.4 | J17: =$A17*J$3 -> 4.5 | K17: =$A17*K$3 -> 3.825
A18: 800 | B18: =$A18*B$3 -> 576 | C18: =$A18*C$3 -> 16 | D18: =$A18*D$3 -> 57.6 | E18: =$A18*E$3 -> 28.8 | F18: =$A18*F$3 -> 14.4 | G18: =$A18*G$3 -> 9.6 | H18: =$A18*H$3 -> 7.2 | I18: =$A18*I$3 -> 5.76 | J18: =$A18*J$3 -> 4.8 | K18: =$A18*K$3 -> 4.08
A19: 850 | B19: =$A19*B$3 -> 612 | C19: =$A19*C$3 -> 17 | D19: =$A19*D$3 -> 61.2 | E19: =$A19*E$3 -> 30.6 | F19: =$A19*F$3 -> 15.3 | G19: =$A19*G$3 -> 10.2 | H19: =$A19*H$3 -> 7.65 | I19: =$A19*I$3 -> 6.12 | J19: =$A19*J$3 -> 5.1 | K19: =$A19*K$3 -> 4.335
A20: 900 | B20: =$A20*B$3 -> 648 | C20: =$A20*C$3 -> 18 | D20: =$A20*D$3 -> 64.8 | E20: =$A20*E$3 -> 32.4 | F20: =$A20*F$3 -> 16.2 | G20: =$A20*G$3 -> 10.8 | H20: =$A20*H$3 -> 8.1 | I20: =$A20*I$3 -> 6.48 | J20: =$A20*J$3 -> 5.4 | K20: =$A20*K$3 -> 4.59
A21: 950 | B21: =$A21*B$3 -> 684 | C21: =$A21*C$3 -> 19 | D21: =$A21*D$3 -> 68.4 | E21: =$A21*E$3 -> 34.2 | F21: =$A21*F$3 -> 17.1 | G21: =$A21*G$3 -> 11.4 | H21: =$A21*H$3 -> 8.55 | I21: =$A21*I$3 -> 6.84 | J21: =$A21*J$3 -> 5.7 | K21: =$A21*K$3 -> 4.845
A22: 1000 | B22: =$A22*B$3 -> 720 | C22: =$A22*C$3 -> 20 | D22: =$A22*D$3 -> 72 | E22: =$A22*E$3 -> 36 | F22: =$A22*F$3 -> 18 | G22: =$A22*G$3 -> 12 | H22: =$A22*H$3 -> 9 | I22: =$A22*I$3 -> 7.2 | J22: =$A22*J$3 -> 6 | K22: =$A22*K$3 -> 5.1
A23: 1050 | B23: =$A23*B$3 -> 756 | C23: =$A23*C$3 -> 21 | D23: =$A23*D$3 -> 75.6 | E23: =$A23*E$3 -> 37.8 | F23: =$A23*F$3 -> 18.9 | G23: =$A23*G$3 -> 12.6 | H23: =$A23*H$3 -> 9.45 | I23: =$A23*I$3 -> 7.56 | J23: =$A23*J$3 -> 6.3 | K23: =$A23*K$3 -> 5.355
A24: 1100 | B24: =$A24*B$3 -> 792 | C24: =$A24*C$3 -> 22 | D24: =$A24*D$3 -> 79.2 | E24: =$A24*E$3 -> 39.6 | F24: =$A24*F$3 -> 19.8 | G24: =$A24*G$3 -> 13.2 | H24: =$A24*H$3 -> 9.9 | I24: =$A24*I$3 -> 7.92 | J24: =$A24*J$3 -> 6.6 | K24: =$A24*K$3 -> 5.61
A25: 1150 | B25: =$A25*B$3 -> 828 | C25: =$A25*C$3 -> 23 | D25: =$A25*D$3 -> 82.8 | E25: =$A25*E$3 -> 41.4 | F25: =$A25*F$3 -> 20.7 | G25: =$A25*G$3 -> 13.8 | H25: =$A25*H$3 -> 10.35 | I25: =$A25*I$3 -> 8.28 | J25: =$A25*J$3 -> 6.9 | K25: =$A25*K$3 -> 5.865
A26: 1200 | B26: =$A26*B$3 -> 864 | C26: =$A26*C$3 -> 24 | D26: =$A26*D$3 -> 86.4 | E26: =$A26*E$3 -> 43.2 | F26: =$A26*F$3 -> 21.6 | G26: =$A26*G$3 -> 14.4 | H26: =$A26*H$3 -> 10.8 | I26: =$A26*I$3 -> 8.64 | J26: =$A26*J$3 -> 7.2 | K26: =$A26*K$3 -> 6.12
A27: 1250 | B27: =$A27*B$3 -> 900 | C27: =$A27*C$3 -> 25 | D27: =$A27*D$3 -> 90 | E27: =$A27*E$3 -> 45 | F27: =$A27*F$3 -> 22.5 | G27: =$A27*G$3 -> 15 | H27: =$A27*H$3 -> 11.25 | I27: =$A27*I$3 -> 9 | J27: =$A27*J$3 -> 7.5 | K27: =$A27*K$3 -> 6.375
A28: 1300 | B28: =$A28*B$3 -> 936 | C28: =$A28*C$3 -> 26 | D28: =$A28*D$3 -> 93.6 | E28: =$A28*E$3 -> 46.8 | F28: =$A28*F$3 -> 23.4 | G28: =$A28*G$3 -> 15.6 | H28: =$A28*H$3 -> 11.7 | I28: =$A28*I$3 -> 9.36 | J28: =$A28*J$3 -> 7.8 | K28: =$A28*K$3 -> 6.63
A29: 1350 | B29: =$A29*B$3 -> 972 | C29: =$A29*C$3 -> 27 | D29: =$A29*D$3 -> 97.2 | E29: =$A29*E$3 -> 48.6 | F29: =$A29*F$3 -> 24.3 | G29: =$A29*G$3 -> 16.2 | H29: =$A29*H$3 -> 12.15 | I29: =$A29*I$3 -> 9.72 | J29: =$A29*J$3 -> 8.1 | K29: =$A29*K$3 -> 6.885
A30: 1400 | B30: =$A30*B$3 -> 1008 | C30: =$A30*C$3 -> 28 | D30: =$A30*D$3 -> 100.8 | E30: =$A30*E$3 -> 50.4 | F30: =$A30*F$3 -> 25.2 | G30: =$A30*G$3 -> 16.8 | H30: =$A30*H$3 -> 12.6 | I30: =$A30*I$3 -> 10.08 | J30: =$A30*J$3 -> 8.4 | K30: =$A30*K$3 -> 7.14

Sheet Natural Yeast - Drawings

Sheet Dry Yeast - Pizza
A1: Pizza
B2: F | C2: W | D2: S | E2: Y.1H | F2: Y.2H | G2: Y.3H | H2: Y.4H | I2: Y.5H | J2: Y.6H | K2: Y.7H | L2: Y.8H
B3: 1 | C3: 0.7 | D3: 0.02 | E3: ='Natural Yeast - Pizza'!E$3/3 -> 0.012 | F3: ='Natural Yeast - Pizza'!F$3/3 -> 0.006 | G3: ='Natural Yeast - Pizza'!G$3/3 -> 0.004 | H3: ='Natural Yeast - Pizza'!H$3/3 -> 0.003 | I3: ='Natural Yeast - Pizza'!I$3/3 -> 0.0024 | J3: ='Natural Yeast - Pizza'!J$3/3 -> 0.002 | K3: ='Natural Yeast - Pizza'!K$3/3 -> 0.0017 | L3: ='Natural Yeast - Pizza'!L$3/3 -> 0.0015
B4: 120 | C4: =$B4*C$3 -> 84 | D4: =$B4*D$3 -> 2.4 | E4: ='Natural Yeast - Pizza'!E4/3 -> 1.44 | F4: ='Natural Yeast - Pizza'!F4/3 -> 0.72 | G4: ='Natural Yeast - Pizza'!G4/3 -> 0.48 | H4: ='Natural Yeast - Pizza'!H4/3 -> 0.36 | I4: ='Natural Yeast - Pizza'!I4/3 -> 0.288 | J4: ='Natural Yeast - Pizza'!J4/3 -> 0.24 | K4: ='Natural Yeast - Pizza'!K4/3 -> 0.204 | L4: ='Natural Yeast - Pizza'!L4/3 -> 0.18
B5: 130 | C5: =$B5*C$3 -> 91 | D5: =$B5*D$3 -> 2.6 | E5: ='Natural Yeast - Pizza'!E5/3 -> 1.56 | F5: ='Natural Yeast - Pizza'!F5/3 -> 0.78 | G5: ='Natural Yeast - Pizza'!G5/3 -> 0.52 | H5: ='Natural Yeast - Pizza'!H5/3 -> 0.39 | I5: ='Natural Yeast - Pizza'!I5/3 -> 0.312 | J5: ='Natural Yeast - Pizza'!J5/3 -> 0.26 | K5: ='Natural Yeast - Pizza'!K5/3 -> 0.221 | L5: ='Natural Yeast - Pizza'!L5/3 -> 0.195
B6: 140 | C6: =$B6*C$3 -> 98 | D6: =$B6*D$3 -> 2.8 | E6: ='Natural Yeast - Pizza'!E6/3 -> 1.68 | F6: ='Natural Yeast - Pizza'!F6/3 -> 0.84 | G6: ='Natural Yeast - Pizza'!G6/3 -> 0.56 | H6: ='Natural Yeast - Pizza'!H6/3 -> 0.42 | I6: ='Natural Yeast - Pizza'!I6/3 -> 0.336 | J6: ='Natural Yeast - Pizza'!J6/3 -> 0.28 | K6: ='Natural Yeast - Pizza'!K6/3 -> 0.238 | L6: ='Natural Yeast - Pizza'!L6/3 -> 0.21
B7: 150 | C7: =$B7*C$3 -> 105 | D7: =$B7*D$3 -> 3 | E7: ='Natural Yeast - Pizza'!E7/3 -> 1.8 | F7: ='Natural Yeast - Pizza'!F7/3 -> 0.9 | G7: ='Natural Yeast - Pizza'!G7/3 -> 0.6 | H7: ='Natural Yeast - Pizza'!H7/3 -> 0.45 | I7: ='Natural Yeast - Pizza'!I7/3 -> 0.36 | J7: ='Natural Yeast - Pizza'!J7/3 -> 0.3 | K7: ='Natural Yeast - Pizza'!K7/3 -> 0.255 | L7: ='Natural Yeast - Pizza'!L7/3 -> 0.225
B8: 160 | C8: =$B8*C$3 -> 112 | D8: =$B8*D$3 -> 3.2 | E8: ='Natural Yeast - Pizza'!E8/3 -> 1.92 | F8: ='Natural Yeast - Pizza'!F8/3 -> 0.96 | G8: ='Natural Yeast - Pizza'!G8/3 -> 0.64 | H8: ='Natural Yeast - Pizza'!H8/3 -> 0.48 | I8: ='Natural Yeast - Pizza'!I8/3 -> 0.384 | J8: ='Natural Yeast - Pizza'!J8/3 -> 0.32 | K8: ='Natural Yeast - Pizza'!K8/3 -> 0.272 | L8: ='Natural Yeast - Pizza'!L8/3 -> 0.24
B9: 170 | C9: =$B9*C$3 -> 119 | D9: =$B9*D$3 -> 3.4 | E9: ='Natural Yeast - Pizza'!E9/3 -> 2.04 | F9: ='Natural Yeast - Pizza'!F9/3 -> 1.02 | G9: ='Natural Yeast - Pizza'!G9/3 -> 0.68 | H9: ='Natural Yeast - Pizza'!H9/3 -> 0.51 | I9: ='Natural Yeast - Pizza'!I9/3 -> 0.408 | J9: ='Natural Yeast - Pizza'!J9/3 -> 0.34 | K9: ='Natural Yeast - Pizza'!K9/3 -> 0.289 | L9: ='Natural Yeast - Pizza'!L9/3 -> 0.255
B10: 180 | C10: =$B10*C$3 -> 126 | D10: =$B10*D$3 -> 3.6 | E10: ='Natural Yeast - Pizza'!E10/3 -> 2.16 | F10: ='Natural Yeast - Pizza'!F10/3 -> 1.08 | G10: ='Natural Yeast - Pizza'!G10/3 -> 0.72 | H10: ='Natural Yeast - Pizza'!H10/3 -> 0.54 | I10: ='Natural Yeast - Pizza'!I10/3 -> 0.432 | J10: ='Natural Yeast - Pizza'!J10/3 -> 0.36 | K10: ='Natural Yeast - Pizza'!K10/3 -> 0.306 | L10: ='Natural Yeast - Pizza'!L10/3 -> 0.27
B11: =B4*2 -> 240 | C11: =$B11*C$3 -> 168 | D11: =$B11*D$3 -> 4.8 | E11: ='Natural Yeast - Pizza'!E11/3 -> 2.88 | F11: ='Natural Yeast - Pizza'!F11/3 -> 1.44 | G11: ='Natural Yeast - Pizza'!G11/3 -> 0.96 | H11: ='Natural Yeast - Pizza'!H11/3 -> 0.72 | I11: ='Natural Yeast - Pizza'!I11/3 -> 0.576 | J11: ='Natural Yeast - Pizza'!J11/3 -> 0.48 | K11: ='Natural Yeast - Pizza'!K11/3 -> 0.408 | L11: ='Natural Yeast - Pizza'!L11/3 -> 0.36
B12: =B5*2 -> 260 | C12: =$B12*C$3 -> 182 | D12: =$B12*D$3 -> 5.2 | E12: ='Natural Yeast - Pizza'!E12/3 -> 3.12 | F12: ='Natural Yeast - Pizza'!F12/3 -> 1.56 | G12: ='Natural Yeast - Pizza'!G12/3 -> 1.04 | H12: ='Natural Yeast - Pizza'!H12/3 -> 0.78 | I12: ='Natural Yeast - Pizza'!I12/3 -> 0.624 | J12: ='Natural Yeast - Pizza'!J12/3 -> 0.52 | K12: ='Natural Yeast - Pizza'!K12/3 -> 0.442 | L12: ='Natural Yeast - Pizza'!L12/3 -> 0.39
B13: =B6*2 -> 280 | C13: =$B13*C$3 -> 196 | D13: =$B13*D$3 -> 5.6 | E13: ='Natural Yeast - Pizza'!E13/3 -> 3.36 | F13: ='Natural Yeast - Pizza'!F13/3 -> 1.68 | G13: ='Natural Yeast - Pizza'!G13/3 -> 1.12 | H13: ='Natural Yeast - Pizza'!H13/3 -> 0.84 | I13: ='Natural Yeast - Pizza'!I13/3 -> 0.672 | J13: ='Natural Yeast - Pizza'!J13/3 -> 0.56 | K13: ='Natural Yeast - Pizza'!K13/3 -> 0.476 | L13: ='Natural Yeast - Pizza'!L13/3 -> 0.42
B14: =B7*2 -> 300 | C14: =$B14*C$3 -> 210 | D14: =$B14*D$3 -> 6 | E14: ='Natural Yeast - Pizza'!E14/3 -> 3.6 | F14: ='Natural Yeast - Pizza'!F14/3 -> 1.8 | G14: ='Natural Yeast - Pizza'!G14/3 -> 1.2 | H14: ='Natural Yeast - Pizza'!H14/3 -> 0.9 | I14: ='Natural Yeast - Pizza'!I14/3 -> 0.72 | J14: ='Natural Yeast - Pizza'!J14/3 -> 0.6 | K14: ='Natural Yeast - Pizza'!K14/3 -> 0.51 | L14: ='Natural Yeast - Pizza'!L14/3 -> 0.45
B15: =B8*2 -> 320 | C15: =$B15*C$3 -> 224 | D15: =$B15*D$3 -> 6.4 | E15: ='Natural Yeast - Pizza'!E15/3 -> 3.84 | F15: ='Natural Yeast - Pizza'!F15/3 -> 1.92 | G15: ='Natural Yeast - Pizza'!G15/3 -> 1.28 | H15: ='Natural Yeast - Pizza'!H15/3 -> 0.96 | I15: ='Natural Yeast - Pizza'!I15/3 -> 0.768 | J15: ='Natural Yeast - Pizza'!J15/3 -> 0.64 | K15: ='Natural Yeast - Pizza'!K15/3 -> 0.544 | L15: ='Natural Yeast - Pizza'!L15/3 -> 0.48
B16: =B9*2 -> 340 | C16: =$B16*C$3 -> 238 | D16: =$B16*D$3 -> 6.8 | E16: ='Natural Yeast - Pizza'!E16/3 -> 4.08 | F16: ='Natural Yeast - Pizza'!F16/3 -> 2.04 | G16: ='Natural Yeast - Pizza'!G16/3 -> 1.36 | H16: ='Natural Yeast - Pizza'!H16/3 -> 1.02 | I16: ='Natural Yeast - Pizza'!I16/3 -> 0.816 | J16: ='Natural Yeast - Pizza'!J16/3 -> 0.68 | K16: ='Natural Yeast - Pizza'!K16/3 -> 0.578 | L16: ='Natural Yeast - Pizza'!L16/3 -> 0.51
B17: =B10*2 -> 360 | C17: =$B17*C$3 -> 252 | D17: =$B17*D$3 -> 7.2 | E17: ='Natural Yeast - Pizza'!E17/3 -> 4.32 | F17: ='Natural Yeast - Pizza'!F17/3 -> 2.16 | G17: ='Natural Yeast - Pizza'!G17/3 -> 1.44 | H17: ='Natural Yeast - Pizza'!H17/3 -> 1.08 | I17: ='Natural Yeast - Pizza'!I17/3 -> 0.864 | J17: ='Natural Yeast - Pizza'!J17/3 -> 0.72 | K17: ='Natural Yeast - Pizza'!K17/3 -> 0.612 | L17: ='Natural Yeast - Pizza'!L17/3 -> 0.54
B18: =B5*3 -> 390 | C18: =$B18*C$3 -> 273 | D18: =$B18*D$3 -> 7.8 | E18: ='Natural Yeast - Pizza'!E18/3 -> 4.68 | F18: ='Natural Yeast - Pizza'!F18/3 -> 2.34 | G18: ='Natural Yeast - Pizza'!G18/3 -> 1.56 | H18: ='Natural Yeast - Pizza'!H18/3 -> 1.17 | I18: ='Natural Yeast - Pizza'!I18/3 -> 0.936 | J18: ='Natural Yeast - Pizza'!J18/3 -> 0.78 | K18: ='Natural Yeast - Pizza'!K18/3 -> 0.663 | L18: ='Natural Yeast - Pizza'!L18/3 -> 0.585
B19: =B6*3 -> 420 | C19: =$B19*C$3 -> 294 | D19: =$B19*D$3 -> 8.4 | E19: ='Natural Yeast - Pizza'!E19/3 -> 5.04 | F19: ='Natural Yeast - Pizza'!F19/3 -> 2.52 | G19: ='Natural Yeast - Pizza'!G19/3 -> 1.68 | H19: ='Natural Yeast - Pizza'!H19/3 -> 1.26 | I19: ='Natural Yeast - Pizza'!I19/3 -> 1.008 | J19: ='Natural Yeast - Pizza'!J19/3 -> 0.84 | K19: ='Natural Yeast - Pizza'!K19/3 -> 0.714 | L19: ='Natural Yeast - Pizza'!L19/3 -> 0.63
B20: =B7*3 -> 450 | C20: =$B20*C$3 -> 315 | D20: =$B20*D$3 -> 9 | E20: ='Natural Yeast - Pizza'!E20/3 -> 5.4 | F20: ='Natural Yeast - Pizza'!F20/3 -> 2.7 | G20: ='Natural Yeast - Pizza'!G20/3 -> 1.8 | H20: ='Natural Yeast - Pizza'!H20/3 -> 1.35 | I20: ='Natural Yeast - Pizza'!I20/3 -> 1.08 | J20: ='Natural Yeast - Pizza'!J20/3 -> 0.9 | K20: ='Natural Yeast - Pizza'!K20/3 -> 0.765 | L20: ='Natural Yeast - Pizza'!L20/3 -> 0.675
B21: =B8*3 -> 480 | C21: =$B21*C$3 -> 336 | D21: =$B21*D$3 -> 9.6 | E21: ='Natural Yeast - Pizza'!E21/3 -> 5.76 | F21: ='Natural Yeast - Pizza'!F21/3 -> 2.88 | G21: ='Natural Yeast - Pizza'!G21/3 -> 1.92 | H21: ='Natural Yeast - Pizza'!H21/3 -> 1.44 | I21: ='Natural Yeast - Pizza'!I21/3 -> 1.152 | J21: ='Natural Yeast - Pizza'!J21/3 -> 0.96 | K21: ='Natural Yeast - Pizza'!K21/3 -> 0.816 | L21: ='Natural Yeast - Pizza'!L21/3 -> 0.72
B22: =B9*3 -> 510 | C22: =$B22*C$3 -> 357 | D22: =$B22*D$3 -> 10.2 | E22: ='Natural Yeast - Pizza'!E22/3 -> 6.12 | F22: ='Natural Yeast - Pizza'!F22/3 -> 3.06 | G22: ='Natural Yeast - Pizza'!G22/3 -> 2.04 | H22: ='Natural Yeast - Pizza'!H22/3 -> 1.53 | I22: ='Natural Yeast - Pizza'!I22/3 -> 1.224 | J22: ='Natural Yeast - Pizza'!J22/3 -> 1.02 | K22: ='Natural Yeast - Pizza'!K22/3 -> 0.867 | L22: ='Natural Yeast - Pizza'!L22/3 -> 0.765
B23: =B10*3 -> 540 | C23: =$B23*C$3 -> 378 | D23: =$B23*D$3 -> 10.8 | E23: ='Natural Yeast - Pizza'!E23/3 -> 6.48 | F23: ='Natural Yeast - Pizza'!F23/3 -> 3.24 | G23: ='Natural Yeast - Pizza'!G23/3 -> 2.16 | H23: ='Natural Yeast - Pizza'!H23/3 -> 1.62 | I23: ='Natural Yeast - Pizza'!I23/3 -> 1.296 | J23: ='Natural Yeast - Pizza'!J23/3 -> 1.08 | K23: ='Natural Yeast - Pizza'!K23/3 -> 0.918 | L23: ='Natural Yeast - Pizza'!L23/3 -> 0.81
B24: =B4*4 -> 480 | C24: =$B24*C$3 -> 336 | D24: =$B24*D$3 -> 9.6 | E24: ='Natural Yeast - Pizza'!E24/3 -> 5.76 | F24: ='Natural Yeast - Pizza'!F24/3 -> 2.88 | G24: ='Natural Yeast - Pizza'!G24/3 -> 1.92 | H24: ='Natural Yeast - Pizza'!H24/3 -> 1.44 | I24: ='Natural Yeast - Pizza'!I24/3 -> 1.152 | J24: ='Natural Yeast - Pizza'!J24/3 -> 0.96 | K24: ='Natural Yeast - Pizza'!K24/3 -> 0.816 | L24: ='Natural Yeast - Pizza'!L24/3 -> 0.72
B25: =B5*4 -> 520 | C25: =$B25*C$3 -> 364 | D25: =$B25*D$3 -> 10.4 | E25: ='Natural Yeast - Pizza'!E25/3 -> 6.24 | F25: ='Natural Yeast - Pizza'!F25/3 -> 3.12 | G25: ='Natural Yeast - Pizza'!G25/3 -> 2.08 | H25: ='Natural Yeast - Pizza'!H25/3 -> 1.56 | I25: ='Natural Yeast - Pizza'!I25/3 -> 1.248 | J25: ='Natural Yeast - Pizza'!J25/3 -> 1.04 | K25: ='Natural Yeast - Pizza'!K25/3 -> 0.884 | L25: ='Natural Yeast - Pizza'!L25/3 -> 0.78
B26: =B6*4 -> 560 | C26: =$B26*C$3 -> 392 | D26: =$B26*D$3 -> 11.2 | E26: ='Natural Yeast - Pizza'!E26/3 -> 6.72 | F26: ='Natural Yeast - Pizza'!F26/3 -> 3.36 | G26: ='Natural Yeast - Pizza'!G26/3 -> 2.24 | H26: ='Natural Yeast - Pizza'!H26/3 -> 1.68 | I26: ='Natural Yeast - Pizza'!I26/3 -> 1.344 | J26: ='Natural Yeast - Pizza'!J26/3 -> 1.12 | K26: ='Natural Yeast - Pizza'!K26/3 -> 0.952 | L26: ='Natural Yeast - Pizza'!L26/3 -> 0.84
B27: =B7*4 -> 600 | C27: =$B27*C$3 -> 420 | D27: =$B27*D$3 -> 12 | E27: ='Natural Yeast - Pizza'!E27/3 -> 7.2 | F27: ='Natural Yeast - Pizza'!F27/3 -> 3.6 | G27: ='Natural Yeast - Pizza'!G27/3 -> 2.4 | H27: ='Natural Yeast - Pizza'!H27/3 -> 1.8 | I27: ='Natural Yeast - Pizza'!I27/3 -> 1.44 | J27: ='Natural Yeast - Pizza'!J27/3 -> 1.2 | K27: ='Natural Yeast - Pizza'!K27/3 -> 1.02 | L27: ='Natural Yeast - Pizza'!L27/3 -> 0.9
B28: =B8*4 -> 640 | C28: =$B28*C$3 -> 448 | D28: =$B28*D$3 -> 12.8 | E28: ='Natural Yeast - Pizza'!E28/3 -> 7.68 | F28: ='Natural Yeast - Pizza'!F28/3 -> 3.84 | G28: ='Natural Yeast - Pizza'!G28/3 -> 2.56 | H28: ='Natural Yeast - Pizza'!H28/3 -> 1.92 | I28: ='Natural Yeast - Pizza'!I28/3 -> 1.536 | J28: ='Natural Yeast - Pizza'!J28/3 -> 1.28 | K28: ='Natural Yeast - Pizza'!K28/3 -> 1.088 | L28: ='Natural Yeast - Pizza'!L28/3 -> 0.96
B29: =B9*4 -> 680 | C29: =$B29*C$3 -> 476 | D29: =$B29*D$3 -> 13.6 | E29: ='Natural Yeast - Pizza'!E29/3 -> 8.16 | F29: ='Natural Yeast - Pizza'!F29/3 -> 4.08 | G29: ='Natural Yeast - Pizza'!G29/3 -> 2.72 | H29: ='Natural Yeast - Pizza'!H29/3 -> 2.04 | I29: ='Natural Yeast - Pizza'!I29/3 -> 1.632 | J29: ='Natural Yeast - Pizza'!J29/3 -> 1.36 | K29: ='Natural Yeast - Pizza'!K29/3 -> 1.156 | L29: ='Natural Yeast - Pizza'!L29/3 -> 1.02
B30: =B10*4 -> 720 | C30: =$B30*C$3 -> 504 | D30: =$B30*D$3 -> 14.4 | E30: ='Natural Yeast - Pizza'!E30/3 -> 8.64 | F30: ='Natural Yeast - Pizza'!F30/3 -> 4.32 | G30: ='Natural Yeast - Pizza'!G30/3 -> 2.88 | H30: ='Natural Yeast - Pizza'!H30/3 -> 2.16 | I30: ='Natural Yeast - Pizza'!I30/3 -> 1.728 | J30: ='Natural Yeast - Pizza'!J30/3 -> 1.44 | K30: ='Natural Yeast - Pizza'!K30/3 -> 1.224 | L30: ='Natural Yeast - Pizza'!L30/3 -> 1.08

Sheet Dry Yeast - Bread
A1: Bread
A2: F | B2: W | C2: S | D2: Y.1H | E2: Y.2H | F2: Y.3H | G2: Y.4H | H2: Y.5H | I2: Y.6H | J2: Y.7H | K2: Y.8H
A3: 1 | B3: 0.72 | C3: 0.02 | D3: ='Natural Yeast - Bread'!D$3/3 -> 0.024 | E3: ='Natural Yeast - Bread'!E$3/3 -> 0.012 | F3: ='Natural Yeast - Bread'!F$3/3 -> 0.006 | G3: ='Natural Yeast - Bread'!G$3/3 -> 0.004 | H3: ='Natural Yeast - Bread'!H$3/3 -> 0.003 | I3: ='Natural Yeast - Bread'!I$3/3 -> 0.0024 | J3: ='Natural Yeast - Bread'!J$3/3 -> 0.002 | K3: ='Natural Yeast - Bread'!K$3/3 -> 0.0017
A4: 100 | B4: =$A4*B$3 -> 72 | C4: =$A4*C$3 -> 2 | D4: ='Natural Yeast - Bread'!D4/3 -> 2.4 | E4: ='Natural Yeast - Bread'!E4/3 -> 1.2 | F4: ='Natural Yeast - Bread'!F4/3 -> 0.6 | G4: ='Natural Yeast - Bread'!G4/3 -> 0.4 | H4: ='Natural Yeast - Bread'!H4/3 -> 0.3 | I4: ='Natural Yeast - Bread'!I4/3 -> 0.24 | J4: ='Natural Yeast - Bread'!J4/3 -> 0.2 | K4: ='Natural Yeast - Bread'!K4/3 -> 0.17
A5: 150 | B5: =$A5*B$3 -> 108 | C5: =$A5*C$3 -> 3 | D5: ='Natural Yeast - Bread'!D5/3 -> 3.6 | E5: ='Natural Yeast - Bread'!E5/3 -> 1.8 | F5: ='Natural Yeast - Bread'!F5/3 -> 0.9 | G5: ='Natural Yeast - Bread'!G5/3 -> 0.6 | H5: ='Natural Yeast - Bread'!H5/3 -> 0.45 | I5: ='Natural Yeast - Bread'!I5/3 -> 0.36 | J5: ='Natural Yeast - Bread'!J5/3 -> 0.3 | K5: ='Natural Yeast - Bread'!K5/3 -> 0.255
A6: 200 | B6: =$A6*B$3 -> 144 | C6: =$A6*C$3 -> 4 | D6: ='Natural Yeast - Bread'!D6/3 -> 4.8 | E6: ='Natural Yeast - Bread'!E6/3 -> 2.4 | F6: ='Natural Yeast - Bread'!F6/3 -> 1.2 | G6: ='Natural Yeast - Bread'!G6/3 -> 0.8 | H6: ='Natural Yeast - Bread'!H6/3 -> 0.6 | I6: ='Natural Yeast - Bread'!I6/3 -> 0.48 | J6: ='Natural Yeast - Bread'!J6/3 -> 0.4 | K6: ='Natural Yeast - Bread'!K6/3 -> 0.34
A7: 250 | B7: =$A7*B$3 -> 180 | C7: =$A7*C$3 -> 5 | D7: ='Natural Yeast - Bread'!D7/3 -> 6 | E7: ='Natural Yeast - Bread'!E7/3 -> 3 | F7: ='Natural Yeast - Bread'!F7/3 -> 1.5 | G7: ='Natural Yeast - Bread'!G7/3 -> 1 | H7: ='Natural Yeast - Bread'!H7/3 -> 0.75 | I7: ='Natural Yeast - Bread'!I7/3 -> 0.6 | J7: ='Natural Yeast - Bread'!J7/3 -> 0.5 | K7: ='Natural Yeast - Bread'!K7/3 -> 0.425
A8: 300 | B8: =$A8*B$3 -> 216 | C8: =$A8*C$3 -> 6 | D8: ='Natural Yeast - Bread'!D8/3 -> 7.2 | E8: ='Natural Yeast - Bread'!E8/3 -> 3.6 | F8: ='Natural Yeast - Bread'!F8/3 -> 1.8 | G8: ='Natural Yeast - Bread'!G8/3 -> 1.2 | H8: ='Natural Yeast - Bread'!H8/3 -> 0.9 | I8: ='Natural Yeast - Bread'!I8/3 -> 0.72 | J8: ='Natural Yeast - Bread'!J8/3 -> 0.6 | K8: ='Natural Yeast - Bread'!K8/3 -> 0.51
A9: 350 | B9: =$A9*B$3 -> 252 | C9: =$A9*C$3 -> 7 | D9: ='Natural Yeast - Bread'!D9/3 -> 8.4 | E9: ='Natural Yeast - Bread'!E9/3 -> 4.2 | F9: ='Natural Yeast - Bread'!F9/3 -> 2.1 | G9: ='Natural Yeast - Bread'!G9/3 -> 1.4 | H9: ='Natural Yeast - Bread'!H9/3 -> 1.05 | I9: ='Natural Yeast - Bread'!I9/3 -> 0.84 | J9: ='Natural Yeast - Bread'!J9/3 -> 0.7 | K9: ='Natural Yeast - Bread'!K9/3 -> 0.595
A10: 400 | B10: =$A10*B$3 -> 288 | C10: =$A10*C$3 -> 8 | D10: ='Natural Yeast - Bread'!D10/3 -> 9.6 | E10: ='Natural Yeast - Bread'!E10/3 -> 4.8 | F10: ='Natural Yeast - Bread'!F10/3 -> 2.4 | G10: ='Natural Yeast - Bread'!G10/3 -> 1.6 | H10: ='Natural Yeast - Bread'!H10/3 -> 1.2 | I10: ='Natural Yeast - Bread'!I10/3 -> 0.96 | J10: ='Natural Yeast - Bread'!J10/3 -> 0.8 | K10: ='Natural Yeast - Bread'!K10/3 -> 0.68
A11: 450 | B11: =$A11*B$3 -> 324 | C11: =$A11*C$3 -> 9 | D11: ='Natural Yeast - Bread'!D11/3 -> 10.8 | E11: ='Natural Yeast - Bread'!E11/3 -> 5.4 | F11: ='Natural Yeast - Bread'!F11/3 -> 2.7 | G11: ='Natural Yeast - Bread'!G11/3 -> 1.8 | H11: ='Natural Yeast - Bread'!H11/3 -> 1.35 | I11: ='Natural Yeast - Bread'!I11/3 -> 1.08 | J11: ='Natural Yeast - Bread'!J11/3 -> 0.9 | K11: ='Natural Yeast - Bread'!K11/3 -> 0.765
A12: 500 | B12: =$A12*B$3 -> 360 | C12: =$A12*C$3 -> 10 | D12: ='Natural Yeast - Bread'!D12/3 -> 12 | E12: ='Natural Yeast - Bread'!E12/3 -> 6 | F12: ='Natural Yeast - Bread'!F12/3 -> 3 | G12: ='Natural Yeast - Bread'!G12/3 -> 2 | H12: ='Natural Yeast - Bread'!H12/3 -> 1.5 | I12: ='Natural Yeast - Bread'!I12/3 -> 1.2 | J12: ='Natural Yeast - Bread'!J12/3 -> 1 | K12: ='Natural Yeast - Bread'!K12/3 -> 0.85
A13: 550 | B13: =$A13*B$3 -> 396 | C13: =$A13*C$3 -> 11 | D13: ='Natural Yeast - Bread'!D13/3 -> 13.2 | E13: ='Natural Yeast - Bread'!E13/3 -> 6.6 | F13: ='Natural Yeast - Bread'!F13/3 -> 3.3 | G13: ='Natural Yeast - Bread'!G13/3 -> 2.2 | H13: ='Natural Yeast - Bread'!H13/3 -> 1.65 | I13: ='Natural Yeast - Bread'!I13/3 -> 1.32 | J13: ='Natural Yeast - Bread'!J13/3 -> 1.1 | K13: ='Natural Yeast - Bread'!K13/3 -> 0.935
A14: 600 | B14: =$A14*B$3 -> 432 | C14: =$A14*C$3 -> 12 | D14: ='Natural Yeast - Bread'!D14/3 -> 14.4 | E14: ='Natural Yeast - Bread'!E14/3 -> 7.2 | F14: ='Natural Yeast - Bread'!F14/3 -> 3.6 | G14: ='Natural Yeast - Bread'!G14/3 -> 2.4 | H14: ='Natural Yeast - Bread'!H14/3 -> 1.8 | I14: ='Natural Yeast - Bread'!I14/3 -> 1.44 | J14: ='Natural Yeast - Bread'!J14/3 -> 1.2 | K14: ='Natural Yeast - Bread'!K14/3 -> 1.02
A15: 650 | B15: =$A15*B$3 -> 468 | C15: =$A15*C$3 -> 13 | D15: ='Natural Yeast - Bread'!D15/3 -> 15.6 | E15: ='Natural Yeast - Bread'!E15/3 -> 7.8 | F15: ='Natural Yeast - Bread'!F15/3 -> 3.9 | G15: ='Natural Yeast - Bread'!G15/3 -> 2.6 | H15: ='Natural Yeast - Bread'!H15/3 -> 1.95 | I15: ='Natural Yeast - Bread'!I15/3 -> 1.56 | J15: ='Natural Yeast - Bread'!J15/3 -> 1.3 | K15: ='Natural Yeast - Bread'!K15/3 -> 1.105
A16: 700 | B16: =$A16*B$3 -> 504 | C16: =$A16*C$3 -> 14 | D16: ='Natural Yeast - Bread'!D16/3 -> 16.8 | E16: ='Natural Yeast - Bread'!E16/3 -> 8.4 | F16: ='Natural Yeast - Bread'!F16/3 -> 4.2 | G16: ='Natural Yeast - Bread'!G16/3 -> 2.8 | H16: ='Natural Yeast - Bread'!H16/3 -> 2.1 | I16: ='Natural Yeast - Bread'!I16/3 -> 1.68 | J16: ='Natural Yeast - Bread'!J16/3 -> 1.4 | K16: ='Natural Yeast - Bread'!K16/3 -> 1.19
A17: 750 | B17: =$A17*B$3 -> 540 | C17: =$A17*C$3 -> 15 | D17: ='Natural Yeast - Bread'!D17/3 -> 18 | E17: ='Natural Yeast - Bread'!E17/3 -> 9 | F17: ='Natural Yeast - Bread'!F17/3 -> 4.5 | G17: ='Natural Yeast - Bread'!G17/3 -> 3 | H17: ='Natural Yeast - Bread'!H17/3 -> 2.25 | I17: ='Natural Yeast - Bread'!I17/3 -> 1.8 | J17: ='Natural Yeast - Bread'!J17/3 -> 1.5 | K17: ='Natural Yeast - Bread'!K17/3 -> 1.275
A18: 800 | B18: =$A18*B$3 -> 576 | C18: =$A18*C$3 -> 16 | D18: ='Natural Yeast - Bread'!D18/3 -> 19.2 | E18: ='Natural Yeast - Bread'!E18/3 -> 9.6 | F18: ='Natural Yeast - Bread'!F18/3 -> 4.8 | G18: ='Natural Yeast - Bread'!G18/3 -> 3.2 | H18: ='Natural Yeast - Bread'!H18/3 -> 2.4 | I18: ='Natural Yeast - Bread'!I18/3 -> 1.92 | J18: ='Natural Yeast - Bread'!J18/3 -> 1.6 | K18: ='Natural Yeast - Bread'!K18/3 -> 1.36
A19: 850 | B19: =$A19*B$3 -> 612 | C19: =$A19*C$3 -> 17 | D19: ='Natural Yeast - Bread'!D19/3 -> 20.4 | E19: ='Natural Yeast - Bread'!E19/3 -> 10.2 | F19: ='Natural Yeast - Bread'!F19/3 -> 5.1 | G19: ='Natural Yeast - Bread'!G19/3 -> 3.4 | H19: ='Natural Yeast - Bread'!H19/3 -> 2.55 | I19: ='Natural Yeast - Bread'!I19/3 -> 2.04 | J19: ='Natural Yeast - Bread'!J19/3 -> 1.7 | K19: ='Natural Yeast - Bread'!K19/3 -> 1.445
A20: 900 | B20: =$A20*B$3 -> 648 | C20: =$A20*C$3 -> 18 | D20: ='Natural Yeast - Bread'!D20/3 -> 21.6 | E20: ='Natural Yeast - Bread'!E20/3 -> 10.8 | F20: ='Natural Yeast - Bread'!F20/3 -> 5.4 | G20: ='Natural Yeast - Bread'!G20/3 -> 3.6 | H20: ='Natural Yeast - Bread'!H20/3 -> 2.7 | I20: ='Natural Yeast - Bread'!I20/3 -> 2.16 | J20: ='Natural Yeast - Bread'!J20/3 -> 1.8 | K20: ='Natural Yeast - Bread'!K20/3 -> 1.53
A21: 950 | B21: =$A21*B$3 -> 684 | C21: =$A21*C$3 -> 19 | D21: ='Natural Yeast - Bread'!D21/3 -> 22.8 | E21: ='Natural Yeast - Bread'!E21/3 -> 11.4 | F21: ='Natural Yeast - Bread'!F21/3 -> 5.7 | G21: ='Natural Yeast - Bread'!G21/3 -> 3.8 | H21: ='Natural Yeast - Bread'!H21/3 -> 2.85 | I21: ='Natural Yeast - Bread'!I21/3 -> 2.28 | J21: ='Natural Yeast - Bread'!J21/3 -> 1.9 | K21: ='Natural Yeast - Bread'!K21/3 -> 1.615
A22: 1000 | B22: =$A22*B$3 -> 720 | C22: =$A22*C$3 -> 20 | D22: ='Natural Yeast - Bread'!D22/3 -> 24 | E22: ='Natural Yeast - Bread'!E22/3 -> 12 | F22: ='Natural Yeast - Bread'!F22/3 -> 6 | G22: ='Natural Yeast - Bread'!G22/3 -> 4 | H22: ='Natural Yeast - Bread'!H22/3 -> 3 | I22: ='Natural Yeast - Bread'!I22/3 -> 2.4 | J22: ='Natural Yeast - Bread'!J22/3 -> 2 | K22: ='Natural Yeast - Bread'!K22/3 -> 1.7
A23: 1050 | B23: =$A23*B$3 -> 756 | C23: =$A23*C$3 -> 21 | D23: ='Natural Yeast - Bread'!D23/3 -> 25.2 | E23: ='Natural Yeast - Bread'!E23/3 -> 12.6 | F23: ='Natural Yeast - Bread'!F23/3 -> 6.3 | G23: ='Natural Yeast - Bread'!G23/3 -> 4.2 | H23: ='Natural Yeast - Bread'!H23/3 -> 3.15 | I23: ='Natural Yeast - Bread'!I23/3 -> 2.52 | J23: ='Natural Yeast - Bread'!J23/3 -> 2.1 | K23: ='Natural Yeast - Bread'!K23/3 -> 1.785
A24: 1100 | B24: =$A24*B$3 -> 792 | C24: =$A24*C$3 -> 22 | D24: ='Natural Yeast - Bread'!D24/3 -> 26.4 | E24: ='Natural Yeast - Bread'!E24/3 -> 13.2 | F24: ='Natural Yeast - Bread'!F24/3 -> 6.6 | G24: ='Natural Yeast - Bread'!G24/3 -> 4.4 | H24: ='Natural Yeast - Bread'!H24/3 -> 3.3 | I24: ='Natural Yeast - Bread'!I24/3 -> 2.64 | J24: ='Natural Yeast - Bread'!J24/3 -> 2.2 | K24: ='Natural Yeast - Bread'!K24/3 -> 1.87
A25: 1150 | B25: =$A25*B$3 -> 828 | C25: =$A25*C$3 -> 23 | D25: ='Natural Yeast - Bread'!D25/3 -> 27.6 | E25: ='Natural Yeast - Bread'!E25/3 -> 13.8 | F25: ='Natural Yeast - Bread'!F25/3 -> 6.9 | G25: ='Natural Yeast - Bread'!G25/3 -> 4.6 | H25: ='Natural Yeast - Bread'!H25/3 -> 3.45 | I25: ='Natural Yeast - Bread'!I25/3 -> 2.76 | J25: ='Natural Yeast - Bread'!J25/3 -> 2.3 | K25: ='Natural Yeast - Bread'!K25/3 -> 1.955
A26: 1200 | B26: =$A26*B$3 -> 864 | C26: =$A26*C$3 -> 24 | D26: ='Natural Yeast - Bread'!D26/3 -> 28.8 | E26: ='Natural Yeast - Bread'!E26/3 -> 14.4 | F26: ='Natural Yeast - Bread'!F26/3 -> 7.2 | G26: ='Natural Yeast - Bread'!G26/3 -> 4.8 | H26: ='Natural Yeast - Bread'!H26/3 -> 3.6 | I26: ='Natural Yeast - Bread'!I26/3 -> 2.88 | J26: ='Natural Yeast - Bread'!J26/3 -> 2.4 | K26: ='Natural Yeast - Bread'!K26/3 -> 2.04
A27: 1250 | B27: =$A27*B$3 -> 900 | C27: =$A27*C$3 -> 25 | D27: ='Natural Yeast - Bread'!D27/3 -> 30 | E27: ='Natural Yeast - Bread'!E27/3 -> 15 | F27: ='Natural Yeast - Bread'!F27/3 -> 7.5 | G27: ='Natural Yeast - Bread'!G27/3 -> 5 | H27: ='Natural Yeast - Bread'!H27/3 -> 3.75 | I27: ='Natural Yeast - Bread'!I27/3 -> 3 | J27: ='Natural Yeast - Bread'!J27/3 -> 2.5 | K27: ='Natural Yeast - Bread'!K27/3 -> 2.125
A28: 1300 | B28: =$A28*B$3 -> 936 | C28: =$A28*C$3 -> 26 | D28: ='Natural Yeast - Bread'!D28/3 -> 31.2 | E28: ='Natural Yeast - Bread'!E28/3 -> 15.6 | F28: ='Natural Yeast - Bread'!F28/3 -> 7.8 | G28: ='Natural Yeast - Bread'!G28/3 -> 5.2 | H28: ='Natural Yeast - Bread'!H28/3 -> 3.9 | I28: ='Natural Yeast - Bread'!I28/3 -> 3.12 | J28: ='Natural Yeast - Bread'!J28/3 -> 2.6 | K28: ='Natural Yeast - Bread'!K28/3 -> 2.21
A29: 1350 | B29: =$A29*B$3 -> 972 | C29: =$A29*C$3 -> 27 | D29: ='Natural Yeast - Bread'!D29/3 -> 32.4 | E29: ='Natural Yeast - Bread'!E29/3 -> 16.2 | F29: ='Natural Yeast - Bread'!F29/3 -> 8.1 | G29: ='Natural Yeast - Bread'!G29/3 -> 5.4 | H29: ='Natural Yeast - Bread'!H29/3 -> 4.05 | I29: ='Natural Yeast - Bread'!I29/3 -> 3.24 | J29: ='Natural Yeast - Bread'!J29/3 -> 2.7 | K29: ='Natural Yeast - Bread'!K29/3 -> 2.295
A30: 1400 | B30: =$A30*B$3 -> 1008 | C30: =$A30*C$3 -> 28 | D30: ='Natural Yeast - Bread'!D30/3 -> 33.6 | E30: ='Natural Yeast - Bread'!E30/3 -> 16.8 | F30: ='Natural Yeast - Bread'!F30/3 -> 8.4 | G30: ='Natural Yeast - Bread'!G30/3 -> 5.6 | H30: ='Natural Yeast - Bread'!H30/3 -> 4.2 | I30: ='Natural Yeast - Bread'!I30/3 -> 3.36 | J30: ='Natural Yeast - Bread'!J30/3 -> 2.8 | K30: ='Natural Yeast - Bread'!K30/3 -> 2.38

Sheet Dry Yeast - Drawings
